bitfinex/quotes_SOLUSD_20240711
["timestamp","ask_amount","ask_price","bid_price","bid_amount"]
[1720696974213,11.42,143.65,143.61,24.3711]
[1720696976106,11.42,143.65,143.62,6.9627]
[1720696976608,11.42,143.64,143.61,17.4079]
[1720696977013,11.42,143.64,143.6,6.9634]
[1720696977311,6.9615,143.65,143.6,6.9634]
[1720696979814,18.3804,143.67,143.63,1.39224581]
[1720696980412,6.9604,143.67,143.63,1.39224581]
[1720696980616,18.3804,143.67,143.63,1.39224581]
[1720696980910,18.3809,143.66,143.62,28.8266]
[1720696981086,6.9609,143.66,143.62,17.4066]
[1720696981286,18.3809,143.66,143.62,17.4066]
[1720696982214,11.42,143.65,143.61,0.62132255]
[1720696982399,11.42,143.65,143.6,42.81243165]
[1720696982597,18.3815,143.65,143.61,1.39243015]
[1720696982795,6.9618,143.64,143.61,1.39243015]
[1720696983214,18.3814,143.65,143.61,1.39243015]
[1720696984708,6.9619,143.64,143.61,1.39243015]
[1720696985992,18.3815,143.65,143.61,1.39243015]
[1720696987045,6.9618,143.64,143.61,1.39243015]
[1720696987520,18.3815,143.65,143.61,1.39243015]
[1720696988712,6.9618,143.64,143.59,13.3232]
[1720696989013,6.9618,143.64,143.6,11.42]
[1720696989218,18.3818,143.64,143.59,24.7432]
[1720696989722,6.9618,143.64,143.59,24.7432]
[1720696989913,18.3818,143.64,143.59,24.7432]
[1720696991123,6.9615,143.65,143.6,6.9637]
[1720696991426,6.9604,143.67,143.63,11.42]
[1720696991629,18.3804,143.67,143.62,25.19561672]
[1720696991916,18.3809,143.66,143.62,17.4067]
[1720696992116,18.3809,143.66,143.62,18.23301671]
[1720696992907,6.9618,143.64,143.59,400.6232]
[1720696993219,18.3818,143.64,143.6,30.0]
[1720696993520,6.9618,143.64,143.61,1.39247228]
[1720696994098,6.9618,143.64,143.6,12.81248451]
[1720696994506,15.985,143.67,143.61,1.39254426]
[1720696994707,23.9101,143.69,143.61,1.39254426]
[1720696994708,18.3811,143.66,143.61,19.77574426]
[1720696995799,6.9614,143.65,143.61,1.39254426]
[1720696996328,18.381,143.66,143.61,8.35574426]
[1720696996998,6.9614,143.65,143.61,1.39254426]
[1720696997518,18.3814,143.65,143.61,1.39254426]
[1720696998026,6.9614,143.65,143.61,1.39254426]
[1720696998198,18.3814,143.65,143.61,1.39254426]
[1720696998799,11.42,143.65,143.61,8.35574426]
[1720696999231,18.3813,143.65,143.61,1.39254426]
[1720697000124,11.42,143.65,143.61,1.39254426]
[1720697000301,11.42,143.65,143.61,8.35564426]
[1720697000506,18.3813,143.65,143.61,1.39254426]
[1720697000796,18.3818,143.64,143.61,1.39254426]
[1720697001003,11.42,143.63,143.59,393.6592]
[1720697001198,6.9624,143.63,143.59,393.6592]
[1720697001417,18.3824,143.63,143.59,393.6592]
[1720697003923,11.42,143.63,143.59,400.6233]
[1720697004225,11.42,143.63,143.6,1.39198124]
[1720697006127,6.9619,143.64,143.61,1.39188435]
[1720697006440,18.3819,143.64,143.6,1.39248349]
[1720697006623,18.3819,143.64,143.61,1.39251934]
[1720697006824,11.42,143.64,143.61,1.39251934]
[1720697007429,18.3819,143.64,143.59,429.4537]
[1720697007844,18.3819,143.64,143.6,1.17506621]
[1720697008537,6.9615,143.65,143.61,1.19728663]
[1720697008725,11.42,143.64,143.61,1.19728663]
[1720697008927,6.9615,143.65,143.61,1.19728663]
[1720697009139,11.42,143.64,143.61,1.19728663]
[1720697009351,11.42,143.63,143.59,418.0337]
[1720697009557,11.42,143.63,143.6,0.83636228]
[1720697010044,11.42,143.63,143.6,1.39245741]
[1720697011031,11.42,143.63,143.61,1.39245711]
[1720697011417,26.65784115,143.69,143.61,1.39245711]
[1720697011640,11.42,143.64,143.61,1.39245711]
[1720697013242,11.42,143.63,143.6,45.0]
[1720697013449,11.42,143.63,143.59,30.7337]
[1720697014026,18.3824,143.63,143.59,24.94288926]
[1720697014251,18.3824,143.63,143.59,23.7696]
[1720697014460,18.3824,143.63,143.59,17.4104]
[1720697015328,18.3824,143.63,143.58,40.78850579]
[1720697016235,6.9624,143.63,143.59,1.05788564]
[1720697016433,11.42,143.62,143.59,1.05788564]
[1720697018123,18.3824,143.63,143.59,1.05788564]
[1720697018758,18.3824,143.63,143.58,33.527]
[1720697019231,18.3824,143.63,143.59,1.39265614]
[1720697021152,6.9624,143.63,143.59,1.39265614]
[1720697021366,6.9619,143.64,143.59,19.77685614]
[1720697021530,18.3819,143.64,143.59,19.77685614]
[1720697021729,11.42,143.63,143.58,18.80414846]
[1720697021944,11.42,143.62,143.58,17.4116]
[1720697022148,18.3831,143.62,143.58,17.4116]
[1720697022345,18.3831,143.62,143.57,18.3849]
[1720697022636,18.3831,143.62,143.58,30.0]
[1720697023357,11.42,143.61,143.58,30.0]
[1720697023654,11.42,143.61,143.57,6.9649]
[1720697026431,11.42,143.61,143.57,6.9649]
[1720697026945,18.3837,143.61,143.55,24.3803]
[1720697027149,11.42,143.6,143.56,30.0]
[1720697027346,11.42,143.6,143.57,1.3906157]
[1720697028363,18.3837,143.61,143.57,1.3906157]
[1720697029225,6.9639,143.6,143.55,25.77340415]
[1720697029430,18.3839,143.6,143.55,37.19340415]
[1720697029630,6.9634,143.61,143.56,18.3857]
[1720697029826,18.3834,143.61,143.57,1.39271011]
[1720697030029,18.3834,143.61,143.56,6.9657]
[1720697030257,11.42,143.6,143.56,8.35860604]
[1720697033059,18.3834,143.61,143.57,6.9652]
[1720697033239,6.9634,143.61,143.56,19.77850604]
[1720697033442,18.3834,143.61,143.56,19.77850604]
[1720697033649,6.9638,143.6,143.56,1.39290604]
[1720697033847,18.3838,143.6,143.56,1.39290604]
[1720697034361,6.9643,143.59,143.55,28.8345]
[1720697034660,6.9643,143.59,143.55,18.56925923]
[1720697034840,18.3843,143.59,143.55,18.56925923]
[1720697035755,6.9643,143.59,143.55,36.95535923]
[1720697036143,17.4061,143.63,143.56,6.9653]
[1720697036467,18.3836,143.61,143.57,1.39279083]
[1720697037362,6.9638,143.6,143.57,1.39279083]
[1720697038462,6.9638,143.6,143.55,24.3805]
[1720697038638,6.9638,143.6,143.56,42.81289559]
[1720697039171,18.3834,143.61,143.56,49.77839559]
[1720697039541,18.3834,143.61,143.56,48.3855]
[1720697039746,6.9639,143.6,143.56,31.39281596]
[1720697040069,18.3839,143.6,143.55,35.8006]
[1720697040370,6.9643,143.59,143.55,24.3806]
[1720697040538,11.42,143.6,143.56,1.39299304]
[1720697040539,18.3839,143.6,143.56,1.39299304]
[1720697040871,18.3839,143.6,143.56,12.81299304]
[1720697041045,6.9639,143.6,143.56,19.77859304]
[1720697041843,6.9634,143.61,143.57,11.42]
[1720697042067,6.9634,143.61,143.58,1.39275108]
[1720697042272,6.9629,143.62,143.58,8.35735108]
[1720697042451,6.9624,143.63,143.59,11.42]
[1720697042865,11.42,143.64,143.59,11.42]
[1720697042866,6.9628,143.62,143.59,11.42]
[1720697043067,6.9628,143.62,143.58,12.81275108]
[1720697043388,6.9623,143.63,143.58,19.77735108]
[1720697043545,18.3823,143.63,143.59,11.42]
[1720697043749,16.4543,143.65,143.59,11.42]
[1720697043750,6.9628,143.62,143.59,11.42]
[1720697044654,6.9628,143.62,143.6,1.39261986]
[1720697044856,6.9628,143.62,143.59,11.42]
[1720697046076,6.9628,143.62,143.6,1.39262318]
[1720697046290,6.4883,143.68,143.61,12.81259109]
[1720697046460,11.42,143.65,143.61,12.81259109]
[1720697046784,6.9616,143.65,143.61,12.81259109]
[1720697047089,18.3816,143.65,143.61,12.81259109]
[1720697047252,6.9619,143.64,143.61,11.42]
[1720697047582,6.9619,143.64,143.6,12.8124177]
[1720697047951,6.9623,143.63,143.59,18.80256853]
[1720697048152,18.3819,143.64,143.59,37.18676853]
[1720697048352,6.9619,143.64,143.6,11.42]
[1720697048588,18.3815,143.65,143.61,12.81245068]
[1720697050458,6.9619,143.64,143.61,1.39245068]
[1720697050652,6.9619,143.64,143.6,1.39245068]
[1720697050866,6.9619,143.64,143.61,1.39235371]
[1720697051680,18.3815,143.65,143.61,1.39235371]
[1720697051872,18.3815,143.65,143.6,8.356129]
[1720697052683,6.9618,143.64,143.6,8.356129]
[1720697055180,6.9618,143.64,143.6,1.392429]
[1720697055371,6.9618,143.64,143.6,46.392429]
[1720697057991,6.9625,143.63,143.6,45.0]
[1720697058195,6.9625,143.63,143.59,28.8301]
[1720697059496,6.9625,143.63,143.59,35.7942]
[1720697059897,18.382,143.64,143.59,35.7942]
[1720697060501,11.42,143.64,143.59,28.8301]
[1720697060672,18.3822,143.64,143.59,24.3742]
[1720697060873,6.9624,143.63,143.59,17.4101]
[1720697061194,18.3824,143.63,143.58,6.9645]
[1720697061384,18.3824,143.63,143.58,18.3845]
[1720697062694,18.3824,143.63,143.59,1.39267341]
[1720697063003,18.3829,143.62,143.57,6.9651]
[1720697063564,6.9638,143.6,143.56,17.4133]
[1720697063799,6.9634,143.61,143.56,37.19159274]
[1720697064101,6.9638,143.6,143.56,37.19159274]
[1720697064275,6.9638,143.6,143.56,35.7986]
[1720697064602,6.9638,143.6,143.56,28.8333]
[1720697067206,18.3833,143.61,143.57,1.3929692]
[1720697068100,6.9638,143.6,143.56,30.22618419]
[1720697069207,6.9638,143.6,143.56,28.8333]
[1720697069374,18.3838,143.6,143.56,17.4133]
[1720697069801,18.3838,143.6,143.55,8.35898578]
[1720697070010,18.3838,143.6,143.55,19.77898578]
[1720697070677,6.9638,143.6,143.56,11.42]
[1720697071206,6.9643,143.59,143.55,19.77898578]
[1720697071401,6.9643,143.59,143.55,1.39288578]
[1720697071586,6.9643,143.59,143.55,12.81288578]
[1720697071789,6.9643,143.59,143.55,1.39288578]
[1720697072177,6.9647,143.58,143.55,1.39288578]
[1720697072481,6.9643,143.59,143.55,1.39306108]
[1720697072786,6.9647,143.58,143.54,11.42]
[1720697072980,6.9647,143.58,143.53,24.3839]
[1720697073297,18.3847,143.58,143.53,35.8039]
[1720697073710,11.42,143.56,143.51,0.1]
[1720697074008,11.42,143.56,143.51,11.52]
[1720697074311,18.386,143.56,143.51,7.0677]
[1720697074492,18.386,143.56,143.51,18.4877]
[1720697078478,11.42,143.54,143.51,0.1]
[1720697078682,6.9668,143.54,143.51,0.1]
[1720697079008,11.42,143.54,143.51,0.1]
[1720697080075,18.3865,143.55,143.51,0.1]
[1720697083101,6.9671,143.53,143.51,0.1]
[1720697085881,15.3413,143.56,143.51,0.1]
[1720697086088,18.3865,143.55,143.51,0.1]
[1720697086496,18.3865,143.55,143.51,11.52]
[1720697087599,6.9667,143.54,143.51,11.52]
[1720697087919,18.387,143.54,143.51,0.1]
[1720697088083,11.42,143.54,143.51,0.1]
[1720697088608,18.3868,143.54,143.51,0.1]
[1720697089210,18.3875,143.53,143.51,0.1]
[1720697091998,11.42,143.52,143.51,0.1]
[1720697093023,18.3876,143.52,143.51,0.1]
[1720697096295,18.5576,143.52,143.51,0.1]
[1720697096617,18.3876,143.52,143.51,0.1]
[1720697097004,18.5576,143.52,143.51,0.1]
[1720697097200,9.79513437,143.54,143.51,0.1]
[1720697097399,11.42,143.53,143.51,0.1]
[1720697097597,6.9676,143.52,143.51,0.1]
[1720697098211,18.3876,143.52,143.51,0.1]
[1720697100901,6.9676,143.52,143.51,0.1]
[1720697101102,18.3876,143.52,143.51,0.1]
[1720697101521,11.42,143.53,143.51,0.1]
[1720697101721,6.9673,143.53,143.51,0.1]
[1720697101896,17.4158,143.55,143.51,0.1]
[1720697102094,6.9675,143.53,143.51,0.1]
[1720697102726,6.9676,143.52,143.51,0.1]
[1720697102928,6.9673,143.53,143.51,0.1]
[1720697103395,6.9676,143.52,143.51,0.1]
[1720697105824,18.3873,143.53,143.51,0.1]
[1720697106030,6.9673,143.53,143.51,0.1]
[1720697106826,6.9666,143.55,143.51,0.1]
[1720697107050,16.3434,143.6,143.51,17.83591447]
[1720697107198,6.9651,143.58,143.54,11.42]
[1720697107403,6.9654,143.57,143.55,1.39303921]
[1720697107723,6.9657,143.56,143.55,1.39303921]
[1720697107914,6.9657,143.56,143.54,1.39307422]
[1720697108322,6.9662,143.55,143.53,1.3930702]
[1720697108627,6.9667,143.54,143.52,1.39003384]
[1720697108830,6.9667,143.54,143.53,30.0]
[1720697109333,6.9667,143.54,143.51,1.49092232]
[1720697110105,11.42,143.53,143.51,0.1]
[1720697110523,6.9676,143.52,143.51,0.1]
[1720697110707,6.9672,143.53,143.51,0.1]
[1720697112000,11.42,143.55,143.51,0.1]
[1720697112227,6.9662,143.55,143.51,12.91325883]
[1720697113132,6.9657,143.56,143.52,11.42]
[1720697113331,6.9662,143.55,143.53,1.39306468]
[1720697114528,6.9662,143.55,143.52,12.81306487]
[1720697114716,6.9668,143.54,143.52,1.39306487]
[1720697115130,6.9671,143.53,143.52,1.39306487]
[1720697115732,6.9671,143.53,143.51,1.49334673]
[1720697116234,17.4134,143.57,143.51,0.1]
[1720697116235,6.9676,143.52,143.51,0.1]
[1720697116412,18.3876,143.52,143.51,0.1]
[1720697116613,6.9676,143.52,143.51,0.1]
[1720697120211,17.4134,143.57,143.51,0.1]
[1720697120419,6.967,143.54,143.51,1.49338327]
[1720697120634,0.17,143.58,143.51,1.49338327]
[1720697120941,11.42,143.55,143.51,1.49338327]
[1720697121141,6.9672,143.53,143.51,1.49338327]
[1720697121319,6.9672,143.53,143.51,0.1]
[1720697121635,18.3876,143.52,143.51,0.1]
[1720697126626,6.9676,143.52,143.51,0.1]
[1720697126828,18.3876,143.52,143.51,0.1]
[1720697127528,18.5576,143.52,143.51,0.1]
[1720697130450,18.3876,143.52,143.51,0.1]
[1720697131149,6.9676,143.52,143.51,0.1]
[1720697131326,18.3876,143.52,143.51,0.1]
[1720697132626,6.9676,143.52,143.51,0.1]
[1720697133030,18.3876,143.52,143.51,0.1]
[1720697134732,18.5576,143.52,143.51,0.1]
[1720697135336,18.7276,143.52,143.51,0.0001]
[1720697135535,63.7276,143.52,143.51,0.0001]
[1720697135733,18.7276,143.52,143.51,0.0001]
[1720697136147,7.3076,143.52,143.51,0.0001]
[1720697136445,18.7276,143.52,143.51,0.0001]
[1720697136630,18.5576,143.52,143.51,0.0001]
[1720697138421,6.9676,143.52,143.51,0.0001]
[1720697138626,18.3876,143.52,143.51,0.0001]
[1720697139748,6.9676,143.52,143.51,0.0001]
[1720697139945,18.3876,143.52,143.51,0.0001]
[1720697140249,7.1376,143.52,143.51,0.0001]
[1720697140560,18.3876,143.52,143.51,0.0001]
[1720697141243,7.1376,143.52,143.51,0.0001]
[1720697141549,18.5576,143.52,143.51,0.0001]
[1720697141933,18.7276,143.52,143.51,0.0001]
[1720697142127,7.1376,143.52,143.51,0.0001]
[1720697142328,6.9696,143.48,143.45,1.39386406]
[1720697142527,6.9696,143.48,143.46,1.39395327]
[1720697143350,6.9691,143.49,143.46,1.39395327]
[1720697143645,6.9687,143.5,143.47,6.4506]
[1720697143831,11.42,143.5,143.47,6.4506]
[1720697144688,6.9696,143.48,143.47,6.4506]
[1720697146644,11.42,143.49,143.47,6.4506]
[1720697146836,18.389,143.5,143.47,6.4506]
[1720697147033,6.969,143.5,143.47,6.4506]
[1720697147254,18.389,143.5,143.47,6.4506]
[1720697147752,6.969,143.5,143.47,6.4506]
[1720697149354,6.9692,143.49,143.47,7.84441677]
[1720697149754,6.9692,143.49,143.47,6.4506]
[1720697151150,6.9696,143.48,143.47,6.4506]
[1720697151353,6.9696,143.48,143.44,29.3208]
[1720697151655,6.9696,143.48,143.44,33.7694]
[1720697151851,6.9701,143.47,143.44,23.74333878]
[1720697152054,6.9697,143.48,143.44,23.74333878]
[1720697152262,6.9697,143.48,143.44,42.13483878]
[1720697152649,6.9692,143.49,143.44,42.13483878]
[1720697152857,6.9692,143.49,143.45,18.391]
[1720697153155,6.9692,143.49,143.45,19.78490373]
[1720697153477,6.9692,143.49,143.45,12.81392474]
[1720697153638,6.9689,143.5,143.46,1.39392474]
[1720697153961,6.9683,143.51,143.46,19.78432474]
[1720697154166,6.9683,143.51,143.46,8.36432474]
[1720697154352,6.9687,143.5,143.46,1.39392474]
[1720697154541,6.9687,143.5,143.46,12.81392474]
[1720697155644,6.9687,143.5,143.46,19.78432474]
[1720697156675,6.9687,143.5,143.45,24.3982]
[1720697156976,6.9692,143.49,143.45,25.79206091]
[1720697157161,6.9692,143.49,143.45,24.3982]
[1720697158373,18.3886,143.5,143.45,24.3982]
[1720697158572,18.3886,143.5,143.46,1.39382646]
[1720697159581,18.3886,143.5,143.45,24.3982]
[1720697160474,18.3886,143.5,143.46,6.9704]
[1720697160775,18.3886,143.5,143.46,8.3642264]
[1720697161585,16.2426,143.55,143.48,6.9693]
[1720697161763,11.42,143.52,143.48,8.36301427]
[1720697161961,18.3878,143.52,143.48,8.36301427]
[1720697162287,11.42,143.52,143.48,1.39371427]
[1720697163066,11.42,143.51,143.48,1.39371427]
[1720697163791,18.3882,143.51,143.47,24.3945]
[1720697164270,18.3882,143.51,143.47,25.78821731]
[1720697166962,18.3882,143.51,143.47,24.3945]
[1720697167464,11.42,143.51,143.47,25.78821653]
[1720697168477,18.3881,143.51,143.47,24.3945]
[1720697168787,18.3881,143.51,143.47,25.78822682]
[1720697172065,18.3881,143.51,143.47,24.3945]
[1720697172592,18.3881,143.51,143.47,25.78822354]
[1720697172901,18.3881,143.51,143.47,24.3945]
[1720697173195,11.42,143.51,143.47,24.3945]
[1720697173891,18.3882,143.51,143.47,24.3945]
[1720697174569,11.42,143.5,143.47,24.3945]
[1720697175198,11.42,143.51,143.48,1.39373347]
[1720697176369,6.9671,143.53,143.48,8.36293347]
[1720697176586,18.3871,143.53,143.49,8.36255462]
[1720697176897,11.42,143.53,143.49,8.36255462]
[1720697177081,6.9672,143.53,143.49,19.78255462]
[1720697177603,18.3872,143.53,143.48,19.78296664]
[1720697177769,6.9677,143.52,143.49,1.39346952]
[1720697177970,6.969,143.5,143.45,6.9709]
[1720697178282,17.4172,143.54,143.47,6.9699]
[1720697178283,6.9677,143.52,143.47,6.9699]
[1720697178480,18.3884,143.51,143.46,69.3965]
[1720697178692,11.42,143.5,143.46,24.3965]
[1720697178993,11.42,143.5,143.47,1.39382255]
[1720697179372,18.3891,143.49,143.45,6.9709]
[1720697179800,18.3891,143.49,143.45,8.36482914]
[1720697180984,11.42,143.49,143.45,8.36482914]
[1720697181175,6.9688,143.5,143.45,8.36482914]
[1720697181373,11.42,143.49,143.45,6.9709]
[1720697181578,6.9695,143.49,143.44,22.3494]
[1720697181881,18.3895,143.49,143.44,33.7694]
[1720697182094,18.3895,143.49,143.45,1.39392813]
[1720697182470,16.1178,143.54,143.46,18.82012808]
[1720697182678,0.17,143.53,143.46,30.24012808]
[1720697182886,6.9673,143.53,143.48,6.9694]
[1720697183093,6.9668,143.54,143.49,8.36251752]
[1720697183280,11.42,143.53,143.49,8.36251752]
[1720697183483,18.3872,143.53,143.49,6.9689]
[1720697183682,11.42,143.52,143.48,24.393]
[1720697183887,18.3879,143.52,143.48,18.81718624]
[1720697184191,18.3879,143.52,143.49,1.39368537]
[1720697184496,11.42,143.52,143.49,1.39368537]
[1720697185175,18.3877,143.52,143.48,24.3931]
[1720697185375,18.3877,143.52,143.47,11.42]
[1720697185376,18.3877,143.52,143.47,8.36369585]
[1720697185582,18.3877,143.52,143.47,19.78369585]
[1720697186188,20.14763698,143.56,143.47,1.39369585]
[1720697186189,11.42,143.51,143.47,1.39369585]
[1720697186385,18.3883,143.51,143.47,1.39369585]
[1720697186577,18.3883,143.51,143.47,8.36369585]
[1720697186785,11.42,143.51,143.47,8.36369585]
[1720697188496,18.3882,143.51,143.47,8.36369585]
[1720697188706,18.3882,143.51,143.47,1.39369585]
[1720697189196,11.42,143.51,143.47,8.36359585]
[1720697189589,11.42,143.51,143.48,6.9695]
[1720697189787,6.9673,143.53,143.49,1.39350159]
[1720697189985,11.42,143.52,143.48,8.36314156]
[1720697190301,11.42,143.52,143.48,1.39364156]
[1720697190302,18.3876,143.52,143.48,1.39364156]
[1720697190802,11.42,143.51,143.47,25.78829273]
[1720697191305,18.3882,143.51,143.47,18.81839273]
[1720697191599,18.3882,143.51,143.47,25.78839273]
[1720697192069,18.3888,143.5,143.46,1.39376143]
[1720697192903,18.3888,143.5,143.46,8.36426143]
[1720697193097,11.42,143.5,143.46,8.36426143]
[1720697193687,18.3882,143.51,143.46,19.78426143]
[1720697194508,11.42,143.5,143.46,8.36426143]
[1720697195408,18.3888,143.5,143.45,19.01938428]
[1720697195603,18.3888,143.5,143.46,0.62844077]
[1720697195808,18.3888,143.5,143.46,1.39389251]
[1720697197003,18.3888,143.5,143.45,8.36478749]
[1720697197312,18.3888,143.5,143.46,1.39397999]
[1720697199191,6.9681,143.51,143.46,8.36447999]
[1720697199407,18.3881,143.51,143.47,6.97]
[1720697199591,18.3881,143.51,143.48,1.39372435]
[1720697199793,18.3877,143.52,143.48,1.39372435]
[1720697199989,18.3877,143.52,143.49,1.39367621]
[1720697200188,18.3877,143.52,143.48,1.39367659]
[1720697200513,6.9683,143.51,143.48,1.39368583]
[1720697201329,18.3883,143.51,143.48,1.39368583]
[1720697202514,18.3883,143.51,143.47,1.39372016]
[1720697208203,18.3883,143.51,143.46,24.3966]
[1720697208403,18.3883,143.51,143.46,35.8166]
[1720697208713,18.3883,143.51,143.47,1.39377807]
[1720697209596,11.42,143.51,143.47,8.36367807]
[1720697211014,18.3883,143.51,143.47,8.36367807]
[1720697216804,11.42,143.51,143.47,8.36367807]
[1720697217019,18.3878,143.52,143.47,8.36367807]
[1720697218126,6.9682,143.51,143.47,19.78367807]
[1720697218322,17.4197,143.52,143.46,1.39371605]
[1720697218501,18.3895,143.49,143.44,29.3205]
[1720697218702,6.97,143.48,143.44,35.16335161]
[1720697219512,6.97,143.48,143.44,42.13475161]
[1720697220728,6.97,143.48,143.44,35.16335161]
[1720697221110,6.9702,143.47,143.44,35.16335161]
[1720697221327,6.9702,143.47,143.44,23.74335161]
[1720697221815,18.3898,143.48,143.44,30.71475161]
[1720697222527,6.9698,143.48,143.44,30.71475161]
[1720697222827,18.3898,143.48,143.44,30.71475161]
[1720697225125,0.17,143.51,143.45,6.9707]
[1720697225126,18.3892,143.49,143.45,6.9707]
[1720697225439,18.3892,143.49,143.46,1.39375764]
[1720697225728,18.3892,143.49,143.45,1.39375802]
[1720697225729,6.9696,143.48,143.45,1.39375802]
[1720697226026,18.3896,143.48,143.45,1.39375802]
[1720697228132,11.42,143.47,143.44,30.71474618]
[1720697228514,18.3901,143.47,143.44,23.74344618]
[1720697228717,18.3901,143.47,143.44,22.3494]
[1720697229027,18.3901,143.47,143.44,6.3225]
[1720697229602,18.3907,143.46,143.43,0.5450292]
[1720697230405,11.42,143.44,143.43,0.5450292]
[1720697230909,11.42,143.45,143.43,0.5450292]
[1720697231850,17.4249,143.48,143.43,0.5450292]
[1720697232133,11.42,143.44,143.43,0.5450292]
[1720697232338,0.17,143.47,143.43,0.5450292]
[1720697232339,6.9712,143.45,143.43,0.5450292]
[1720697232950,11.42,143.44,143.43,0.5450292]
[1720697233119,6.9706,143.46,143.43,0.5450292]
[1720697233320,6.9704,143.47,143.43,1.93933747]
[1720697233525,39.5649,143.54,143.45,6.971]
[1720697233834,18.3896,143.48,143.44,6.9713]
[1720697234012,6.9701,143.47,143.43,41.4182292]
[1720697234207,18.3901,143.47,143.43,35.84064908]
[1720697234634,18.3906,143.46,143.43,18.41114908]
[1720697234837,11.42,143.45,143.43,0.5450292]
[1720697235023,6.9715,143.44,143.43,0.5450292]
[1720697235331,11.42,143.44,143.43,0.5450292]
[1720697235539,18.3915,143.44,143.43,0.5450292]
[1720697237846,11.42,143.44,143.43,0.5450292]
[1720697238547,18.3915,143.44,143.43,0.5450292]
[1720697238747,11.42,143.44,143.43,0.5450292]
[1720697241240,18.3915,143.44,143.43,0.5450292]
[1720697245143,18.5615,143.44,143.43,0.5450292]
[1720697251247,18.3925,143.42,143.41,0.1]
[1720697254954,18.5625,143.42,143.41,0.1]
[1720697256453,63.7325,143.42,143.41,0.1]
[1720697256634,52.3125,143.42,143.41,0.1]
[1720697256834,63.7325,143.42,143.41,0.1]
[1720697257744,18.5625,143.42,143.41,0.1]
[1720697258959,74.1915,143.42,143.34,13.0856]
[1720697259160,11.42,143.38,143.34,13.0856]
[1720697259848,11.42,143.37,143.34,13.0856]
[1720697260432,18.3948,143.38,143.34,14.48067454]
[1720697260656,11.42,143.38,143.34,14.48067454]
[1720697262270,11.42,143.38,143.34,13.0856]
[1720697262765,18.3946,143.38,143.34,14.48058037]
[1720697263439,11.42,143.38,143.34,14.48058037]
[1720697264271,18.3945,143.38,143.34,14.48058037]
[1720697264450,18.3945,143.38,143.34,13.0856]
[1720697264780,18.3945,143.38,143.34,14.48059716]
[1720697265364,11.42,143.37,143.34,13.0856]
[1720697266262,11.42,143.38,143.35,8.37079626]
[1720697266439,18.3941,143.39,143.36,1.39498977]
[1720697266640,11.42,143.39,143.36,8.37028977]
[1720697266950,18.3935,143.4,143.36,8.37028977]
[1720697267258,18.3931,143.41,143.37,40.7066]
[1720697267566,6.9731,143.41,143.38,1.3946884]
[1720697267743,6.9735,143.4,143.38,1.3946884]
[1720697268237,18.3935,143.4,143.38,1.3946884]
[1720697268640,6.9735,143.4,143.38,1.3946884]
[1720697269069,6.9744,143.38,143.37,16.2949]
[1720697269253,6.9741,143.39,143.36,1.39488211]
[1720697269847,20.19780918,143.43,143.36,1.39488211]
[1720697270171,21.2651,143.48,143.37,18.3946]
[1720697270172,6.9733,143.41,143.37,18.3946]
[1720697270378,6.9733,143.41,143.38,1.39463046]
[1720697270761,6.9735,143.4,143.38,1.39463046]
[1720697270952,18.3932,143.41,143.38,1.39463046]
[1720697271582,18.3926,143.42,143.38,8.36903046]
[1720697272285,6.9731,143.41,143.38,1.39463046]
[1720697273370,6.9736,143.4,143.36,18.3952]
[1720697273555,6.9741,143.39,143.37,1.39467591]
[1720697274792,6.9741,143.39,143.36,1.39480214]
[1720697275072,6.9745,143.38,143.34,46.1764]